fUSD/lending_fUSD_20250720
["ID","MTS","AMOUNT","RATE_DAILY","PERIOD"]
[373462723,1753017043932,-480.0,0.00019178,2]
[373462725,1753017043942,-273.473755,0.00019178,2]
[373462727,1753017043952,-1906.31,0.00019178,2]
[373462730,1753017043961,-565.62,0.00019178,2]
[373462732,1753017043974,-480.0,0.00019178,2]
[373462734,1753017043984,-3137.36,0.00019178,2]
[373462736,1753017043994,-480.0,0.00019178,2]
[373462738,1753017044004,-480.0,0.00019178,2]
[373462740,1753017044014,-853.59,0.00019178,2]
[373462742,1753017044023,-480.0,0.00019178,2]
[373462744,1753017044033,-480.0,0.00019178,2]
[373462746,1753017044042,-460.0,0.00019178,2]
[373462748,1753017044051,-460.0,0.00019178,2]
[373462750,1753017044063,-480.0,0.00019178,2]
[373462752,1753017044072,-480.0,0.00019178,2]
[373462754,1753017044082,-480.0,0.00019178,2]
[373462756,1753017044091,-480.0,0.00019178,2]
[373462758,1753017044101,-480.0,0.00019178,2]
[373462760,1753017044110,-480.0,0.00019178,2]
[373462762,1753017044120,-480.0,0.00019178,2]
[373462764,1753017044129,-480.0,0.00019178,2]
[373462766,1753017044139,-480.0,0.00019178,2]
[373462768,1753017044148,-480.0,0.00019178,2]
[373462770,1753017044157,-493.24,0.00019178,2]
[373462772,1753017044166,-1696.96,0.00019178,2]
[373462774,1753017044176,-480.0,0.00019178,2]
[373462776,1753017044185,-480.0,0.00019178,2]
[373462778,1753017044194,-480.0,0.00019178,2]
[373462780,1753017044204,-500.0,0.00019178,2]
[373462782,1753017044213,-500.0,0.00019178,2]
[373462784,1753017044223,-480.0,0.00019178,2]
[373462786,1753017044233,-480.0,0.00019178,2]
[373462788,1753017044242,-2026.54,0.00019178,2]
[373462790,1753017044251,-480.0,0.00019178,2]
[373462792,1753017044260,-1536.45,0.00019178,2]
[373462794,1753017044270,-981.38,0.00019178,2]
[373462796,1753017044279,-480.0,0.00019178,2]
[373462798,1753017044288,-480.0,0.00019178,2]
[373462800,1753017044298,-541.26577526,0.00019178,2]
[373462802,1753017044307,-480.0,0.00019178,2]
[373462804,1753017044318,-445.94444628,0.00019178,2]
[373462806,1753017044327,-480.0,0.00019178,2]
[373462808,1753017044336,-480.0,0.00019178,2]
[373462810,1753017044345,-480.0,0.00019178,2]
[373462812,1753017044355,-823.88,0.00019178,2]
[373462814,1753017044364,-480.0,0.00019178,2]
[373462816,1753017044373,-480.0,0.00019178,2]
[373462818,1753017044385,-830.46,0.00019178,2]
[373462820,1753017044394,-513.59526652,0.00019178,2]
[373462822,1753017044403,-165.775494,0.00019178,2]
[373462824,1753017044413,-163.081545,0.00019178,2]
[373462826,1753017044422,-480.0,0.00019178,2]
[373462828,1753017044432,-480.0,0.00019178,2]
[373462830,1753017044442,-963.41,0.00019178,2]
[373462832,1753017044451,-480.0,0.00019178,2]
[373462834,1753017044461,-480.0,0.00019178,2]
[373462836,1753017044470,-480.0,0.00019178,2]
[373462838,1753017044480,-480.0,0.00019178,2]
[373462840,1753017044490,-480.0,0.00019178,2]
[373462842,1753017044500,-480.0,0.00019178,2]
[373462844,1753017044510,-480.0,0.00019178,2]
[373462858,1753017044711,-480.0,0.00019178,2]
[373462861,1753017044749,-480.0,0.00019178,2]
[373462863,1753017044761,-5709.5,0.00019178,2]
[373462865,1753017044771,-5709.5,0.00019178,2]
[373462867,1753017044781,-480.0,0.00019178,2]
[373462869,1753017044791,-480.0,0.00019178,2]
[373462871,1753017044801,-376.2154318,0.00019178,2]
[373462873,1753017044810,-569.92,0.00019178,2]
[373462875,1753017044820,-480.0,0.00019178,2]
[373462877,1753017044829,-480.0,0.00019178,2]
[373462879,1753017044841,-480.0,0.00019178,2]
[373462881,1753017044852,-648.1,0.00019178,2]
[373462883,1753017044861,-480.0,0.00019178,2]
[373462885,1753017044870,-480.0,0.00019178,2]
[373462887,1753017044880,-5215.18,0.00019178,2]
[373462889,1753017044889,-1044.1,0.00019178,2]
[373462891,1753017044899,-1388.48,0.00019178,2]
[373462893,1753017044909,-480.0,0.00019178,2]
[373462895,1753017044918,-480.0,0.00019178,2]
[373462897,1753017044929,-729.74,0.00019178,2]
[373462899,1753017044938,-480.0,0.00019178,2]
[373462901,1753017044948,-827.12,0.00019178,2]
[373462903,1753017044957,-155.154919,0.00019178,2]
[373462905,1753017044967,-480.0,0.00019178,2]
[373462907,1753017044977,-2977.2,0.00019178,2]
[373462911,1753017044998,-480.0,0.00019178,2]
[373462913,1753017045008,-420.0,0.00019178,2]
[373462915,1753017045017,-838.71,0.00019178,2]
[373462917,1753017045027,-480.0,0.00019178,2]
[373462919,1753017045036,-480.0,0.00019178,2]
[373462921,1753017045045,-480.0,0.00019178,2]
[373462923,1753017045054,-480.0,0.00019178,2]
[373462924,1753017045064,-480.0,0.00019178,2]
[373462927,1753017045073,-480.0,0.00019178,2]
[373462929,1753017045083,-480.0,0.00019178,2]
[373462931,1753017045092,-480.0,0.00019178,2]
[373462933,1753017045102,-480.0,0.00019178,2]
[373462935,1753017045112,-480.0,0.00019178,2]
[373462937,1753017045121,-993.38,0.00019178,2]
[373462939,1753017045131,-480.0,0.00019178,2]
[373462941,1753017045140,-480.0,0.00019178,2]
[373462942,1753017045150,-738.73,0.00019178,2]
[373462944,1753017045159,-480.0,0.00019178,2]
[373462946,1753017045169,-480.0,0.00019178,2]
[373462948,1753017045178,-480.0,0.00019178,2]
[373462951,1753017045188,-942.6,0.00019178,2]
[373462953,1753017045198,-480.0,0.00019178,2]
[373462954,1753017045207,-480.0,0.00019178,2]
[373462957,1753017045217,-480.0,0.00019178,2]
[373462959,1753017045227,-480.0,0.00019178,2]
[373462961,1753017045237,-480.0,0.00019178,2]
[373462963,1753017045246,-390.75320891,0.00019178,2]
[373462965,1753017045256,-846.89,0.00019178,2]
[373462967,1753017045266,-565.15639841,0.00019178,2]
[373462969,1753017045275,-480.0,0.00019178,2]
[373462971,1753017045285,-480.0,0.00019178,2]
[373462973,1753017045295,-480.0,0.00019178,2]
[373462975,1753017045304,-480.0,0.00019178,2]
[373462977,1753017045314,-480.0,0.00019178,2]
[373462979,1753017045324,-500.0,0.00019178,2]
[373462981,1753017045333,-154.718646,0.00019178,2]
[373462983,1753017045343,-500.0,0.00019178,2]
[373462985,1753017045352,-500.0,0.00019178,2]
[373462987,1753017045362,-480.0,0.00019178,2]
[373462989,1753017045373,-153.972945,0.00019178,2]
[373462991,1753017045383,-480.0,0.00019178,2]
[373462993,1753017045393,-480.0,0.00019178,2]
[373462995,1753017045402,-480.0,0.00019178,2]
[373462998,1753017045416,-480.0,0.00019178,2]
[373463000,1753017045425,-480.0,0.00019178,2]
[373463002,1753017045434,-1055.73,0.00019178,2]
[373463004,1753017045444,-1356.61,0.00019178,2]
[373463006,1753017045454,-480.0,0.00019178,2]
[373463008,1753017045464,-480.0,0.00019178,2]
[373463010,1753017045473,-480.0,0.00019178,2]
[373463012,1753017045483,-480.0,0.00019178,2]
[373463014,1753017045492,-1058.94,0.00019178,2]
[373463016,1753017045502,-482.3582181,0.00019178,2]
[373463018,1753017045512,-480.0,0.00019178,2]
[373463020,1753017045522,-480.0,0.00019178,2]
[373463022,1753017045531,-480.0,0.00019178,2]
[373463024,1753017045540,-480.0,0.00019178,2]
[373463026,1753017045550,-480.0,0.00019178,2]
[373463028,1753017045559,-480.0,0.00019178,2]
[373463030,1753017045569,-480.0,0.00019178,2]
[373463032,1753017045578,-480.0,0.00019178,2]
[373463034,1753017045588,-480.0,0.00019178,2]
[373463036,1753017045597,-950.68,0.00019178,2]
[373463038,1753017045607,-480.0,0.00019178,2]
[373463040,1753017045616,-480.0,0.00019178,2]
[373463042,1753017045625,-480.0,0.00019178,2]
[373463044,1753017045634,-517.18,0.00019178,2]
[373463046,1753017045643,-480.0,0.00019178,2]
[373463048,1753017045653,-805.2,0.00019178,2]
[373463050,1753017045662,-947.79,0.00019178,2]
[373463052,1753017045672,-480.0,0.00019178,2]
[373463054,1753017045681,-480.0,0.00019178,2]
[373463056,1753017045690,-2178.9,0.00019178,2]
[373463058,1753017045700,-2110.58,0.00019178,2]
[373463060,1753017045709,-176.230906,0.00019178,2]
[373463062,1753017045719,-480.0,0.00019178,2]
[373463064,1753017045728,-1183.55,0.00019178,2]
[373463066,1753017045739,-718.39,0.00019178,2]
[373463068,1753017045748,-480.0,0.00019178,2]
[373463070,1753017045761,-480.0,0.00019178,2]
[373463072,1753017045773,-480.0,0.00019178,2]
[373463074,1753017045782,-480.0,0.00019178,2]
[373463076,1753017045791,-967.68,0.00019178,2]
[373463078,1753017045801,-480.0,0.00019178,2]
[373463080,1753017045810,-480.0,0.00019178,2]
[373463082,1753017045820,-480.0,0.00019178,2]
[373463084,1753017045829,-480.0,0.00019178,2]
[373463086,1753017045839,-480.0,0.00019178,2]
[373463088,1753017045848,-2353.52,0.00019178,2]
[373463090,1753017045857,-480.0,0.00019178,2]
[373463092,1753017045866,-480.0,0.00019178,2]
[373463094,1753017045875,-480.0,0.00019178,2]
[373463096,1753017045885,-480.0,0.00019178,2]
[373463098,1753017045894,-480.0,0.00019178,2]
[373463100,1753017045903,-480.0,0.00019178,2]
[373463102,1753017045912,-480.0,0.00019178,2]
[373463104,1753017045921,-2123.97,0.00019178,2]
[373463106,1753017045932,-480.0,0.00019178,2]
[373463108,1753017045941,-480.0,0.00019178,2]
[373463110,1753017045950,-4098.43,0.00019178,2]
[373463112,1753017045960,-480.0,0.00019178,2]
[373463114,1753017045969,-1024.32,0.00019178,2]
[373463116,1753017045979,-480.0,0.00019178,2]
[373463118,1753017045989,-696.21,0.00019178,2]
[373463120,1753017045998,-480.0,0.00019178,2]
[373463122,1753017046008,-480.0,0.00019178,2]
[373463124,1753017046017,-625.29,0.00019178,2]
[373463126,1753017046027,-480.0,0.00019178,2]
[373463128,1753017046036,-480.0,0.00019178,2]
[373463130,1753017046045,-644.66,0.00019178,2]
[373463132,1753017046055,-480.0,0.00019178,2]
[373463134,1753017046064,-480.0,0.00019178,2]
[373463137,1753017046074,-440.0,0.00019178,2]
[373463139,1753017046083,-480.0,0.00019178,2]
[373463141,1753017046092,-480.0,0.00019178,2]
[373463143,1753017046102,-480.0,0.00019178,2]
[373463145,1753017046111,-480.0,0.00019178,2]
[373463147,1753017046121,-480.0,0.00019178,2]
[373463149,1753017046130,-577.79,0.00019178,2]
[373463151,1753017046139,-4394.04,0.00019178,2]
[373463153,1753017046148,-480.0,0.00019178,2]
[373463155,1753017046158,-1455.7,0.00019178,2]
[373463157,1753017046167,-480.0,0.00019178,2]
[373463159,1753017046176,-480.0,0.00019178,2]
[373463161,1753017046186,-480.0,0.00019178,2]
[373463163,1753017046195,-3043.65,0.00019178,2]
[373463165,1753017046205,-480.0,0.00019178,2]
[373463167,1753017046214,-480.0,0.00019178,2]
[373463169,1753017046223,-631.76,0.00019178,2]
[373463171,1753017046232,-5028.52,0.00019178,2]
[373463173,1753017046242,-1305.74,0.00019178,2]
[373463175,1753017046251,-480.0,0.00019178,2]
[373463177,1753017046260,-480.0,0.00019178,2]
[373463179,1753017046270,-480.0,0.00019178,2]
[373463181,1753017046279,-498.79598067,0.00019178,2]
[373463183,1753017046289,-480.0,0.00019178,2]
[373463185,1753017046298,-480.0,0.00019178,2]
[373463187,1753017046307,-480.0,0.00019178,2]
[373463189,1753017046316,-480.0,0.00019178,2]
[373463191,1753017046326,-1482.98,0.00019178,2]
[373463193,1753017046335,-662.54,0.00019178,2]
[373463195,1753017046345,-480.0,0.00019178,2]
[373463197,1753017046355,-937.5,0.00019178,2]
[373463199,1753017046365,-1222.76,0.00019178,2]
[373463201,1753017046374,-480.0,0.00019178,2]
[373463202,1753017046383,-1666.2,0.00019178,2]
[373463203,1753017046393,-480.0,0.00019178,2]
[373463204,1753017046403,-480.0,0.00019178,2]
[373463205,1753017046412,-443.29968302,0.00019178,2]
[373463206,1753017046422,-480.0,0.00019178,2]
[373463207,1753017046432,-756.17,0.00019178,2]
[373463208,1753017046441,-480.0,0.00019178,2]
[373463209,1753017046450,-480.0,0.00019178,2]
[373463210,1753017046459,-1645.82,0.00019178,2]
[373463211,1753017046469,-1403.01,0.00019178,2]
[373463212,1753017046479,-480.0,0.00019178,2]
[373463213,1753017046488,-480.0,0.00019178,2]
[373463214,1753017046498,-480.0,0.00019178,2]
[373463215,1753017046507,-480.0,0.00019178,2]
[373463216,1753017046516,-541.13,0.00019178,2]
[373463217,1753017046525,-560.34832736,0.00019178,2]
[373463218,1753017046535,-480.0,0.00019178,2]
[373463219,1753017046544,-1593.89,0.00019178,2]
[373463220,1753017046553,-480.0,0.00019178,2]
[373463221,1753017046563,-1212.11,0.00019178,2]
[373463222,1753017046572,-480.0,0.00019178,2]
[373463223,1753017046581,-480.0,0.00019178,2]
[373463225,1753017046592,-602.57,0.00019178,2]
[373463227,1753017046602,-480.0,0.00019178,2]
[373463229,1753017046611,-480.0,0.00019178,2]
[373463231,1753017046620,-480.0,0.00019178,2]
[373463233,1753017046630,-577.97,0.00019178,2]
[373463235,1753017046639,-2894.53,0.00019178,2]
[373463237,1753017046649,-480.0,0.00019178,2]
[373463239,1753017046658,-628.9,0.00019178,2]
[373463241,1753017046667,-480.0,0.00019178,2]
[373463243,1753017046676,-480.0,0.00019178,2]
[373463245,1753017046685,-1769.9,0.00019178,2]
[373463247,1753017046695,-480.0,0.00019178,2]
[373463249,1753017046704,-480.0,0.00019178,2]
[373463251,1753017046713,-480.0,0.00019178,2]
[373463253,1753017046723,-480.0,0.00019178,2]
[373463255,1753017046733,-480.0,0.00019178,2]
[373463257,1753017046742,-1048.92,0.00019178,2]
[373463259,1753017046751,-1096.7,0.00019178,2]
[373463261,1753017046763,-480.0,0.00019178,2]
[373463263,1753017046772,-480.0,0.00019178,2]
[373463265,1753017046781,-320.5992537,0.00019178,2]
[373463267,1753017046790,-480.0,0.00019178,2]
[373463269,1753017046799,-480.0,0.00019178,2]
[373463271,1753017046809,-480.0,0.00019178,2]
[373463273,1753017046818,-1017.95,0.00019178,2]
[373463275,1753017046828,-480.0,0.00019178,2]
[373463277,1753017046839,-480.0,0.00019178,2]
[373463279,1753017046850,-480.0,0.00019178,2]
[373463281,1753017046860,-1674.97,0.00019178,2]
[373463283,1753017046869,-480.0,0.00019178,2]
[373463285,1753017046879,-440.0,0.00019178,2]
[373463287,1753017046889,-480.0,0.00019178,2]
[373463289,1753017046898,-480.0,0.00019178,2]
[373463291,1753017046907,-1796.0,0.00019178,2]
[373463293,1753017046916,-480.0,0.00019178,2]
[373463295,1753017046926,-618.11,0.00019178,2]
[373463297,1753017046936,-1540.15,0.00019178,2]
[373463299,1753017046945,-3402.31,0.00019178,2]
[373463301,1753017046955,-673.18,0.00019178,2]
[373463303,1753017046964,-480.0,0.00019178,2]
[373463305,1753017046975,-480.0,0.00019178,2]
[373463307,1753017046984,-480.0,0.00019178,2]
[373463309,1753017046993,-480.0,0.00019178,2]
[373463311,1753017047003,-480.0,0.00019178,2]
[373463313,1753017047012,-1323.7,0.00019178,2]
[373463315,1753017047021,-3514.33,0.00019178,2]
[373463317,1753017047032,-480.0,0.00019178,2]
[373463319,1753017047041,-480.0,0.00019178,2]
[373463321,1753017047050,-1724.33,0.00019178,2]
[373463323,1753017047060,-2932.34,0.00019178,2]
[373463325,1753017047070,-480.0,0.00019178,2]
[373463334,1753017047149,-1852.55,0.00019178,2]
[373463335,1753017047159,-845.83,0.00019178,2]
[373463336,1753017047168,-480.0,0.00019178,2]
[373463337,1753017047178,-480.0,0.00019178,2]
[373463338,1753017047187,-480.0,0.00019178,2]
[373463339,1753017047197,-559.68,0.00019178,2]
[373463340,1753017047205,-1157.0,0.00019178,2]
[373463341,1753017047215,-480.0,0.00019178,2]
[373463342,1753017047225,-480.0,0.00019178,2]
[373463344,1753017047234,-671.29,0.00019178,2]
[373463345,1753017047244,-446.79387456,0.00019178,2]
[373463347,1753017047253,-480.0,0.00019178,2]
[373463349,1753017047262,-1261.2,0.00019178,2]
[373463351,1753017047272,-480.0,0.00019178,2]
[373463353,1753017047281,-480.0,0.00019178,2]
[373463355,1753017047290,-1672.17,0.00019178,2]
[373463357,1753017047300,-900.26,0.00019178,2]
[373463360,1753017047311,-1185.66,0.00019178,2]
[373463361,1753017047321,-480.0,0.00019178,2]
[373463363,1753017047330,-480.0,0.00019178,2]
[373463365,1753017047339,-4413.57,0.00019178,2]
[373463367,1753017047348,-480.0,0.00019178,2]
[373463370,1753017047358,-440.0,0.00019178,2]
[373463371,1753017047368,-480.0,0.00019178,2]
[373463373,1753017047377,-480.0,0.00019178,2]
[373463375,1753017047387,-755.77,0.00019178,2]
[373463378,1753017047396,-480.0,0.00019178,2]
[373463380,1753017047406,-480.0,0.00019178,2]
[373463382,1753017047415,-480.0,0.00019178,2]
[373463384,1753017047425,-480.0,0.00019178,2]
[373463385,1753017047434,-722.76,0.00019178,2]
[373463388,1753017047444,-480.0,0.00019178,2]
[373463389,1753017047453,-926.36,0.00019178,2]
[373463391,1753017047463,-480.0,0.00019178,2]
[373463393,1753017047472,-4158.01,0.00019178,2]
[373463395,1753017047481,-2463.68,0.00019178,2]
[373463397,1753017047491,-480.0,0.00019178,2]
[373463400,1753017047500,-480.0,0.00019178,2]
[373463401,1753017047509,-1895.02,0.00019178,2]
[373463403,1753017047518,-480.0,0.00019178,2]
[373463405,1753017047529,-480.0,0.00019178,2]
[373463407,1753017047538,-758.0,0.00019178,2]
[373463409,1753017047547,-480.0,0.00019178,2]
[373463411,1753017047556,-480.0,0.00019178,2]
[373463412,1753017047565,-480.0,0.00019178,2]
[373463413,1753017047574,-1614.88,0.00019178,2]
[373463414,1753017047583,-480.0,0.00019178,2]
[373463415,1753017047594,-480.0,0.00019178,2]
[373463416,1753017047605,-480.0,0.00019178,2]
[373463417,1753017047614,-480.0,0.00019178,2]
[373463418,1753017047623,-270.99021697,0.00019178,2]
[373463419,1753017047632,-480.0,0.00019178,2]
[373463420,1753017047641,-2738.51,0.00019178,2]
[373463422,1753017047651,-1019.8,0.00019178,2]
[373463423,1753017047661,-480.0,0.00019178,2]
[373463424,1753017047670,-480.0,0.00019178,2]
[373463425,1753017047679,-480.0,0.00019178,2]
[373463426,1753017047689,-549.4,0.00019178,2]
[373463427,1753017047698,-480.0,0.00019178,2]
[373463428,1753017047707,-728.28,0.00019178,2]
[373463429,1753017047716,-671.87,0.00019178,2]
[373463430,1753017047726,-480.0,0.00019178,2]
[373463431,1753017047736,-460.0,0.00019178,2]
[373463432,1753017047745,-2824.54,0.00019178,2]
[373463433,1753017047755,-541.64,0.00019178,2]
[373463434,1753017047767,-480.0,0.00019178,2]
[373463435,1753017047777,-5142.63,0.00019178,2]
[373463436,1753017047787,-279.68785253,0.00019178,2]
[373463437,1753017047797,-4422.78,0.00019178,2]
[373463438,1753017047806,-480.0,0.00019178,2]
[373463439,1753017047815,-480.0,0.00019178,2]
[373463441,1753017047824,-978.7,0.00019178,2]
[373463443,1753017047834,-480.0,0.00019178,2]
[373463445,1753017047843,-480.0,0.00019178,2]
[373463447,1753017047853,-759.39,0.00019178,2]
[373463448,1753017047863,-5113.01,0.00019178,2]
[373463449,1753017047872,-480.0,0.00019178,2]
[373463450,1753017047881,-480.0,0.00019178,2]
[373463451,1753017047890,-1685.16,0.00019178,2]
[373463452,1753017047900,-480.0,0.00019178,2]
[373463453,1753017047909,-480.0,0.00019178,2]
[373463454,1753017047919,-431.07046195,0.00019178,2]
[373463455,1753017047928,-983.37,0.00019178,2]
[373463456,1753017047938,-480.0,0.00019178,2]
[373463457,1753017047947,-169.618174,0.00019178,2]
[373463458,1753017047956,-657.21,0.00019178,2]
[373463459,1753017047966,-480.0,0.00019178,2]
[373463460,1753017047977,-1817.04,0.00019178,2]
[373463461,1753017047986,-1000.0,0.00019178,2]
[373463462,1753017047995,-507.64,0.00019178,2]
[373463463,1753017048005,-601.7,0.00019178,2]
[373463464,1753017048015,-190.0839578,0.00019178,2]
[373463465,1753017048024,-480.0,0.00019178,2]
[373463466,1753017048034,-480.0,0.00019178,2]
[373463467,1753017048049,-12606.02,0.00019178,2]
[373463468,1753017048058,-731.23,0.00019178,2]
[373463469,1753017048068,-480.0,0.00019178,2]
[373463470,1753017048078,-480.0,0.00019178,2]
[373463471,1753017048088,-929.57,0.00019178,2]
[373463472,1753017048097,-833.88,0.00019178,2]
[373463473,1753017048107,-480.0,0.00019178,2]
[373463474,1753017048116,-1549.75,0.00019178,2]
[373463475,1753017048125,-1419.97,0.00019178,2]
[373463476,1753017048135,-480.0,0.00019178,2]
[373463478,1753017048145,-480.0,0.00019178,2]
[373463479,1753017048154,-1508.11,0.00019178,2]
[373463480,1753017048164,-480.0,0.00019178,2]
[373463481,1753017048173,-2260.87,0.00019178,2]
[373463482,1753017048182,-665.1,0.00019178,2]
[373463483,1753017048192,-504.82,0.00019178,2]
[373463484,1753017048201,-800.6,0.00019178,2]
[373463485,1753017048210,-626.65,0.00019178,2]
[373463486,1753017048219,-1744.39,0.00019178,2]
[373463487,1753017048229,-480.0,0.00019178,2]
[373463488,1753017048238,-1056.09,0.00019178,2]
[373463489,1753017048248,-480.0,0.00019178,2]
[373463490,1753017048257,-490.64,0.00019178,2]
[373463491,1753017048266,-480.0,0.00019178,2]
[373463492,1753017048276,-480.0,0.00019178,2]
[373463493,1753017048286,-796.56,0.00019178,2]
[373463494,1753017048295,-480.0,0.00019178,2]
[373463495,1753017048305,-1650.61,0.00019178,2]
[373463496,1753017048314,-480.0,0.00019178,2]
[373463497,1753017048325,-480.0,0.00019178,2]
[373463498,1753017048334,-943.92,0.00019178,2]
[373463499,1753017048343,-480.0,0.00019178,2]
[373463500,1753017048352,-752.54,0.00019178,2]
[373463501,1753017048361,-480.0,0.00019178,2]
[373463502,1753017048370,-788.92,0.00019178,2]
[373463503,1753017048380,-1127.31,0.00019178,2]
[373463504,1753017048389,-480.0,0.00019178,2]
[373463505,1753017048398,-1461.67,0.00019178,2]
[373463506,1753017048408,-165.681454,0.00019178,2]
[373463507,1753017048417,-168.32362,0.00019178,2]
[373463508,1753017048427,-480.0,0.00019178,2]
[373463509,1753017048436,-986.58,0.00019178,2]
[373463510,1753017048445,-480.0,0.00019178,2]
[373463511,1753017048455,-509.14,0.00019178,2]
[373463512,1753017048464,-480.0,0.00019178,2]
[373463513,1753017048473,-158.04834147,0.00019178,2]
[373463514,1753017048483,-1032.49,0.00019178,2]
[373463515,1753017048492,-2098.14,0.00019178,2]
[373463516,1753017048502,-1698.93,0.00019178,2]
[373463517,1753017048511,-1313.06,0.00019178,2]
[373463518,1753017048520,-6885.91,0.00019178,2]
[373463519,1753017048529,-480.0,0.00019178,2]
[373463520,1753017048539,-480.0,0.00019178,2]
[373463521,1753017048548,-480.0,0.00019178,2]
[373463522,1753017048557,-480.0,0.00019178,2]
[373463523,1753017048567,-2127.43,0.00019178,2]
[373463524,1753017048576,-3053.99,0.00019178,2]
[373463525,1753017048585,-480.0,0.00019178,2]
[373463526,1753017048594,-2339.59,0.00019178,2]
[373463527,1753017048604,-518.46,0.00019178,2]
[373463528,1753017048613,-2204.23,0.00019178,2]
[373463529,1753017048623,-1040.39,0.00019178,2]
[373463530,1753017048632,-607.74,0.00019178,2]
[373463531,1753017048642,-3359.94,0.00019178,2]
[373463532,1753017048652,-480.0,0.00019178,2]
[373463533,1753017048662,-480.0,0.00019178,2]
[373463534,1753017048671,-480.0,0.00019178,2]
[373463535,1753017048680,-480.0,0.00019178,2]
[373463536,1753017048690,-1367.42,0.00019178,2]
[373463537,1753017048699,-480.0,0.00019178,2]
[373463538,1753017048709,-1323.1,0.00019178,2]
[373463539,1753017048718,-480.0,0.00019178,2]
[373463540,1753017048728,-480.0,0.00019178,2]
[373463541,1753017048737,-38027.73,0.00019178,2]
[373463542,1753017048747,-918.24,0.00019178,2]
[373463543,1753017048760,-480.0,0.00019178,2]
[373463544,1753017048769,-174.181051,0.00019178,2]
[373463545,1753017048779,-480.0,0.00019178,2]
[373463546,1753017048788,-480.0,0.00019178,2]
[373463547,1753017048798,-995.02,0.00019178,2]
[373463548,1753017048807,-2240.44,0.00019178,2]
[373463549,1753017048816,-480.0,0.00019178,2]
[373463550,1753017048825,-2429.74,0.00019178,2]
[373463551,1753017048836,-480.0,0.00019178,2]
[373463552,1753017048845,-1236.91,0.00019178,2]
[373463553,1753017048854,-2151.22,0.00019178,2]
[373463554,1753017048864,-480.0,0.00019178,2]
[373463556,1753017048873,-1731.22,0.00019178,2]
[373463558,1753017048883,-480.0,0.00019178,2]
[373463559,1753017048893,-1271.07,0.00019178,2]
[373463560,1753017048903,-2750.09,0.00019178,2]
[373463561,1753017048913,-889.82,0.00019178,2]
[373463562,1753017048923,-480.0,0.00019178,2]
[373463563,1753017048933,-552.5,0.00019178,2]
[373463564,1753017048943,-480.0,0.00019178,2]
[373463565,1753017048952,-480.0,0.00019178,2]
[373463566,1753017048962,-480.0,0.00019178,2]
[373463567,1753017048972,-480.0,0.00019178,2]
[373463568,1753017048982,-480.0,0.00019178,2]
[373463569,1753017048991,-480.0,0.00019178,2]
[373463570,1753017049001,-1033.03,0.00019178,2]
[373463571,1753017049011,-480.0,0.00019178,2]